bitfinex/quotes_BTCUSD_20250423
["timestamp","ask_amount","ask_price","bid_price","bid_amount"]
[1745444892025,0.10689014,93519.0,93501.0,0.343]
[1745444892239,0.10689014,93519.0,93504.0,0.34]
[1745444892452,0.01100239,93518.0,93501.0,0.344]
[1745444892743,0.10689014,93517.0,93501.0,0.344]
[1745444892961,0.10689014,93517.0,93501.0,0.55790066]
[1745444893162,0.10689014,93517.0,93501.0,0.56459573]
[1745444893367,0.01180313,93516.0,93504.0,0.342]
[1745444893573,0.10689014,93515.0,93504.0,0.343]
[1745444893782,0.01069415,93509.0,93504.0,0.002]
[1745444893983,0.22458211,93507.0,93504.0,0.002]
[1745444894140,0.01069461,93505.0,93501.0,0.001]
[1745444894337,0.10988515,93504.0,93501.0,0.001]
[1745444894963,0.12057987,93504.0,93501.0,0.004]
[1745444895169,0.07943349,93503.0,93501.0,0.003]
[1745444895366,0.10988515,93502.0,93501.0,0.003]
[1745444896786,0.11388515,93502.0,93501.0,0.003]
[1745444896959,0.11388515,93502.0,93495.0,0.0014248]
[1745444898163,0.10988515,93502.0,93495.0,0.0014248]
[1745444898366,0.05630498,93501.0,93495.0,0.0014248]
[1745444898697,0.10689014,93500.0,93495.0,0.0014248]
[1745444900330,0.10989014,93500.0,93495.0,0.0014248]
[1745444901211,0.11189014,93500.0,93495.0,0.0014248]
[1745444910882,0.11189014,93500.0,93495.0,0.0004248]
[1745444912243,0.01255846,93499.0,93495.0,0.0004248]
[1745444912462,0.10689014,93498.0,93495.0,0.0004248]
[1745444914233,0.10889014,93498.0,93495.0,0.0004248]
[1745444914765,0.11189014,93498.0,93495.0,0.0004248]
[1745444916035,0.11189014,93498.0,93486.0,0.21393379]
[1745444916213,0.11189014,93498.0,93485.0,0.0855144]
[1745444916413,0.11189014,93498.0,93486.0,0.22463255]
[1745444916767,0.11189014,93498.0,93492.0,0.07]
[1745444916962,0.10989014,93498.0,93492.0,0.07]
[1745444917472,0.10689014,93498.0,93492.0,0.07]
[1745444917672,0.10689014,93498.0,93486.0,0.08190547]
[1745444917875,0.10789014,93498.0,93486.0,0.07120869]
[1745444918107,0.10789014,93498.0,93486.0,0.08190547]
[1745444918314,0.10989014,93498.0,93486.0,0.08190547]
[1745444918520,0.10889014,93498.0,93485.0,0.0855144]
[1745444918664,0.10889014,93498.0,93485.0,0.29945106]
[1745444918859,0.11089014,93498.0,93485.0,0.29945106]
[1745444919064,0.11089014,93498.0,93486.0,0.01069678]
[1745444919279,0.10989014,93498.0,93488.0,0.36999231]
[1745444920289,0.10989014,93498.0,93492.0,0.21392159]
[1745444920500,0.10689014,93498.0,93492.0,0.21392159]
[1745444920695,0.10789014,93498.0,93492.0,0.21392159]
[1745444920898,0.10689014,93498.0,93492.0,0.21392159]
[1745444921887,0.10789014,93498.0,93492.0,0.21392159]
[1745444923339,0.10789014,93498.0,93489.0,0.21392891]
[1745444923340,0.10789014,93498.0,93493.0,0.21391785]
[1745444924883,0.10689014,93498.0,93493.0,0.21391785]
[1745444925600,0.10789014,93498.0,93493.0,0.21391785]
[1745444925752,0.10889014,93498.0,93493.0,0.21391785]
[1745444925972,0.10789014,93498.0,93493.0,0.21391785]
[1745444926178,0.10889014,93498.0,93493.0,0.21391785]
[1745444927152,0.002,93498.0,93497.0,0.2139106]
[1745444928291,0.09136,93512.0,93497.0,0.2139106]
[1745444928495,0.003,93498.0,93495.0,0.213915]
[1745444928916,0.003,93498.0,93496.0,0.21391157]
[1745444929134,0.002,93498.0,93496.0,0.21391157]
[1745444929315,0.10689014,93511.0,93497.0,0.21390891]
[1745444929545,0.001,93498.0,93497.0,0.21390891]
[1745444930192,0.002,93498.0,93497.0,0.55390891]
[1745444930400,0.002,93498.0,93497.0,0.68822331]
[1745444931208,0.003,93498.0,93497.0,0.68822331]
[1745444931418,0.00013879,93522.0,93512.0,0.34]
[1745444931631,0.10689014,93521.0,93511.0,0.34]
[1745444932068,0.10689014,93521.0,93516.0,0.21386698]
[1745444932694,0.10989014,93521.0,93516.0,0.21386698]
[1745444933279,0.11189014,93521.0,93516.0,0.22456033]
[1745444933711,0.005,93521.0,93518.0,0.01069312]
[1745444934081,0.005,93521.0,93519.0,0.21385814]
[1745444934319,0.003,93521.0,93519.0,0.21385814]
[1745444934744,0.004,93521.0,93519.0,0.21385814]
[1745444935188,0.003,93521.0,93519.0,0.21385814]
[1745444935315,0.005,93521.0,93519.0,0.21385814]
[1745444935543,0.008,93521.0,93519.0,0.21385814]
[1745444936353,0.002,93521.0,93519.0,0.21385814]
[1745444936749,0.004,93521.0,93519.0,0.21385814]
[1745444944839,0.0021383,93521.0,93519.0,0.21385814]
[1745444945094,0.002,93521.0,93519.0,0.21385814]
[1745444945310,0.002,93521.0,93519.0,0.21485814]
[1745444945471,0.00013879,93522.0,93521.0,0.21385571]
[1745444946826,0.00113879,93522.0,93521.0,0.21385571]
[1745444947404,0.00113879,93522.0,93521.0,0.21485571]
[1745444951128,0.00113879,93522.0,93521.0,0.001]
[1745444965255,0.00113879,93522.0,93521.0,0.21485571]
[1745444967484,0.00113879,93522.0,93521.0,0.001]
[1745444968582,0.09613879,93522.0,93521.0,0.001]
[1745444968784,0.00113879,93522.0,93521.0,0.001]
[1745444974236,0.10802893,93522.0,93521.0,0.001]
[1745444975751,0.33860443,93522.0,93521.0,0.001]
[1745444975870,0.12475101,93522.0,93521.0,0.001]
[1745444977814,0.10802893,93522.0,93521.0,0.001]
[1745444981695,0.32188235,93522.0,93521.0,0.001]
[1745444982528,0.32088235,93522.0,93521.0,0.001]
[1745444982926,0.01069301,93519.0,93510.0,0.24283247]
[1745444983684,0.01069289,93520.0,93510.0,0.24283247]
[1745444984106,0.01069289,93520.0,93510.0,0.24483247]
[1745444984288,0.09109689,93520.0,93510.0,0.24483247]
[1745444984616,0.09109689,93520.0,93510.0,0.24283247]
[1745444985756,0.09109689,93520.0,93510.0,0.24483247]
[1745444986157,0.09109689,93520.0,93510.0,0.24583247]
[1745444986807,0.09109689,93520.0,93510.0,0.003]
[1745444987139,0.01069301,93519.0,93510.0,0.003]
[1745444987402,0.00299501,93518.0,93510.0,0.003]
[1745444988014,0.00299501,93518.0,93510.0,0.001]
[1745444988418,0.00299501,93518.0,93510.0,0.003]
[1745444988808,0.01924613,93519.0,93510.0,0.003]
[1745444989309,0.00299501,93518.0,93510.0,0.002]
[1745444989519,0.07207912,93518.0,93501.0,0.34]
[1745444989985,0.07207912,93518.0,93510.0,0.002]
[1745444990323,0.01069347,93515.0,93510.0,0.001]
[1745444990520,0.01069324,93517.0,93501.0,0.344]
[1745444990750,0.01069324,93517.0,93511.0,0.07]
[1745444990751,0.26545936,93517.0,93511.0,0.07]
[1745444990930,0.21387629,93512.0,93511.0,0.07]
[1745444991136,0.01069404,93510.0,93500.0,0.24283247]
[1745444991962,0.01069427,93508.0,93500.0,0.24283247]
[1745444992142,0.01069415,93509.0,93500.0,0.24283247]
[1745444992542,0.01069404,93510.0,93500.0,0.24283247]
[1745444992802,0.01069495,93502.0,93484.0,0.0004249]
[1745444992943,0.00299501,93501.0,93484.0,0.0004249]
[1745444993353,0.01369008,93501.0,93484.0,0.0004249]
[1745444993755,0.01369008,93501.0,93500.0,0.004]
[1745444994216,0.01369008,93501.0,93484.0,0.0004249]
[1745444994417,0.04735666,93500.0,93484.0,0.0004249]
[1745444994631,0.00299501,93499.0,93484.0,0.0024249]
[1745444995155,0.01369031,93499.0,93484.0,0.0024249]
[1745444995356,0.01069553,93497.0,93484.0,0.0024249]
[1745444995562,0.01069587,93494.0,93484.0,0.0024249]
[1745444995762,0.16937538,93493.0,93484.0,0.0024249]
[1745444995961,0.16937538,93493.0,93484.0,0.0004249]
[1745444996349,0.16937538,93493.0,93484.0,0.0024249]
[1745444996882,0.0474,93492.0,93484.0,0.0014249]
[1745444997178,0.15429014,93492.0,93484.0,0.0004249]
[1745444997406,0.06659898,93491.0,93484.0,0.0014249]
[1745444997768,0.06659898,93491.0,93484.0,0.0034249]
[1745444997994,0.06659898,93491.0,93484.0,0.0024249]
[1745444998533,0.06659898,93491.0,93484.0,0.0034249]
[1745444999053,0.06659898,93491.0,93484.0,0.0014249]
[1745444999386,0.10689014,93492.0,93484.0,0.0034249]
[1745444999966,0.10689014,93492.0,93484.0,0.0014249]
[1745445000187,0.10689014,93492.0,93484.0,0.0024249]
[1745445000378,0.10689014,93492.0,93484.0,0.0034249]
[1745445000586,0.10689014,93492.0,93484.0,0.0014249]
[1745445000747,0.0120357,93491.0,93484.0,0.0004249]
[1745445001087,0.0120357,93491.0,93484.0,0.0034249]
[1745445001777,0.0120357,93491.0,93484.0,0.0024249]
[1745445002187,0.0120357,93491.0,93484.0,0.0014249]
[1745445002357,0.0120357,93491.0,93484.0,0.0034249]
[1745445005371,0.0120357,93491.0,93481.0,0.11144418]
[1745445005649,0.10689014,93492.0,93480.0,0.24283247]
[1745445006645,0.10689014,93492.0,93481.0,0.003]
[1745445006853,0.10689014,93492.0,93480.0,0.24283247]
[1745445007050,0.10689014,93492.0,93480.0,0.24483247]
[1745445007254,0.10689014,93492.0,93480.0,0.24783247]
[1745445010732,0.10689014,93492.0,93480.0,0.005]
[1745445010948,0.145749,93492.0,93480.0,0.24783247]
[1745445013962,0.10689014,93492.0,93480.0,0.24783247]
[1745445018970,0.10689014,93492.0,93480.0,0.25783247]
[1745445029298,0.10689014,93492.0,93480.0,0.015]
[1745445029495,0.0474,93491.0,93480.0,0.015]
[1745445029696,0.0474,93491.0,93480.0,0.4717805]
[1745445029899,0.0474,93491.0,93480.0,0.48247797]
[1745445030367,0.0474,93491.0,93480.0,0.4687805]
[1745445030671,0.0474,93491.0,93480.0,0.22694803]
[1745445030831,0.01304509,93490.0,93486.0,0.07]
[1745445031035,0.0474,93491.0,93480.0,0.07754813]
[1745445032372,0.0474,93491.0,93480.0,0.07454813]
[1745445032533,0.0474,93491.0,93486.0,0.001]
[1745445032991,0.0474,93491.0,93480.0,0.07454813]
[1745445033136,0.0474,93491.0,93480.0,0.07654813]
[1745445033780,0.0474,93491.0,93480.0,0.07354813]
[1745445033949,0.0474,93491.0,93486.0,0.001]
[1745445034179,0.04744623,93491.0,93486.0,0.001]
[1745445035374,0.04744623,93491.0,93486.0,0.01]
[1745445036659,0.04744623,93491.0,93486.0,0.011]
[1745445036951,4.623e-05,93491.0,93486.0,0.011]
[1745445046594,4.623e-05,93491.0,93486.0,0.02169678]
[1745445047337,4.623e-05,93491.0,93486.0,0.011]
[1745445058714,4.623e-05,93491.0,93478.0,0.21395342]
[1745445058914,4.623e-05,93491.0,93479.0,0.35069758]
[1745445059331,4.623e-05,93491.0,93480.0,0.21394899]
[1745445059524,4.623e-05,93491.0,93480.0,0.22464646]
[1745445059688,4.623e-05,93491.0,93481.0,0.01069736]
[1745445060084,4.623e-05,93491.0,93480.0,0.22464646]
[1745445060510,4.623e-05,93491.0,93481.0,0.01069736]
[1745445060871,4.623e-05,93491.0,93480.0,0.22464646]
[1745445061073,4.623e-05,93491.0,93481.0,0.01069736]
[1745445061522,4.623e-05,93491.0,93480.0,0.22764646]
[1745445061715,4.623e-05,93491.0,93480.0,0.22464646]
[1745445061928,4.623e-05,93491.0,93481.0,0.003]
[1745445062305,0.01073987,93491.0,93481.0,0.003]
[1745445062544,4.623e-05,93491.0,93481.0,0.003]
[1745445063237,4.623e-05,93491.0,93480.0,0.27444646]
[1745445063403,4.623e-05,93491.0,93480.0,0.27544646]
[1745445063602,4.623e-05,93491.0,93481.0,0.01069736]
[1745445063801,4.623e-05,93491.0,93481.0,0.01169736]
[1745445064319,4.623e-05,93491.0,93481.0,0.01069736]
[1745445064490,4.623e-05,93491.0,93480.0,0.27544646]
[1745445064792,4.623e-05,93491.0,93481.0,0.002]
[1745445064940,4.623e-05,93491.0,93481.0,0.003]
[1745445066047,4.623e-05,93491.0,93480.0,0.01069747]
[1745445066459,4.623e-05,93491.0,93478.0,0.21395342]
[1745445066893,4.623e-05,93491.0,93481.0,0.001]
[1745445067094,4.623e-05,93491.0,93487.0,0.07]
[1745445067470,4.623e-05,93491.0,93480.0,0.05280015]
[1745445068261,4.623e-05,93491.0,93481.0,0.001]
[1745445069412,4.623e-05,93491.0,93480.0,0.06649762]
[1745445069575,4.623e-05,93491.0,93480.0,0.06749762]
[1745445069804,4.623e-05,93491.0,93480.0,0.06649762]
[1745445070008,4.623e-05,93491.0,93480.0,0.06349762]
[1745445071293,4.623e-05,93491.0,93480.0,0.06449762]
[1745445072314,4.623e-05,93491.0,93484.0,0.01069701]
[1745445072509,4.623e-05,93491.0,93489.0,0.21392752]
[1745445073846,0.00204623,93491.0,93489.0,0.21392752]
[1745445074024,0.00404623,93491.0,93489.0,0.21392752]
[1745445074659,0.00204623,93491.0,93489.0,0.21392752]
[1745445074789,0.00504623,93491.0,93489.0,0.21492752]
[1745445086035,0.00504623,93491.0,93490.0,0.049]
[1745445086247,0.00504623,93491.0,93490.0,0.06354085]
[1745445086449,0.00504623,93491.0,93490.0,0.06653528]
[1745445086609,0.00504623,93491.0,93490.0,0.51143099]
[1745445086822,0.0463,93531.0,93526.0,0.21384421]
[1745445087061,0.14051617,93534.0,93527.0,0.21383973]
[1745445087199,0.00089672,93529.0,93527.0,0.21383973]
[1745445088430,0.00389672,93529.0,93527.0,0.21383973]
[1745445088629,0.00389672,93529.0,93528.0,0.01454085]
[1745445088856,0.00389672,93529.0,93528.0,0.12143099]
[1745445089056,0.00389672,93529.0,93528.0,0.46143099]
[1745445089661,0.05019617,93534.0,93529.0,0.61527826]
[1745445089869,0.05019617,93534.0,93529.0,0.7221684]
[1745445090244,0.05019617,93534.0,93529.0,1.1415684]
[1745445090771,0.0008502,93559.0,93529.0,1.1465684]
[1745445090965,0.0008502,93559.0,93529.0,1.1475684]
[1745445092247,0.0018504,93530.0,93529.0,1.1525684]
[1745445097938,0.0018504,93530.0,93529.0,1.1535684]
[1745445098813,1e-08,93530.0,93529.0,1.1535684]
[1745445101187,1e-08,93530.0,93529.0,1.2003684]
[1745445101404,1e-08,93530.0,93529.0,1.2503684]
[1745445102436,1e-08,93530.0,93529.0,1.2453684]
[1745445102656,0.0008502,93559.0,93529.0,1.2403684]
[1745445102870,0.0008502,93559.0,93547.0,0.55379627]
[1745445103188,0.0008502,93559.0,93547.0,0.67522726]
[1745445103954,0.0018502,93548.0,93547.0,0.67522726]
[1745445104369,0.0018502,93548.0,93547.0,0.55379627]
[1745445104561,0.0018502,93548.0,93547.0,0.55879627]
[1745445104758,0.0018502,93548.0,93547.0,0.57333712]
[1745445105698,0.0018502,93548.0,93547.0,0.005]
[1745445105833,0.0483502,93548.0,93547.0,0.005]
[1745445106044,0.0483502,93548.0,93547.0,0.002]
[1745445106510,0.0483502,93548.0,93547.0,0.005]
[1745445106858,0.0483502,93548.0,93540.0,0.21381029]
[1745445107032,0.0493502,93548.0,93540.0,0.2245009]
[1745445107331,0.0523502,93548.0,93541.0,0.22449831]
[1745445108075,0.0493502,93548.0,93541.0,0.22449831]
[1745445108452,0.0483502,93548.0,93542.0,0.21380723]
[1745445109193,0.0483502,93548.0,93541.0,0.21380773]
[1745445109394,0.0483502,93548.0,93542.0,0.21380559]
[1745445109615,0.0483502,93548.0,93544.0,0.21380218]
[1745445109839,0.0483502,93548.0,93546.0,0.21379813]
[1745445110678,0.0483502,93548.0,93542.0,0.001]
[1745445110833,0.0483502,93548.0,93543.0,0.22449568]
[1745445111033,0.0493502,93548.0,93545.0,0.01069004]
[1745445111466,0.0493502,93548.0,93544.0,0.22449328]
[1745445111903,0.0493502,93548.0,93546.0,0.21379644]
[1745445112489,0.0483502,93548.0,93546.0,0.21379644]
[1745445112694,0.0483502,93548.0,93541.0,0.22449842]
[1745445113538,0.0493502,93548.0,93541.0,0.22449842]
[1745445113950,0.0483502,93548.0,93542.0,0.01069038]
[1745445114906,0.0483502,93548.0,93541.0,0.22449842]
[1745445115126,0.0483502,93548.0,93542.0,0.01069038]
[1745445115327,0.0483502,93548.0,93541.0,0.22449842]
[1745445115964,0.0483502,93548.0,93541.0,0.22549842]
[1745445116310,0.0483502,93548.0,93538.0,0.19245777]
[1745445116822,0.0483502,93548.0,93541.0,0.01069049]
[1745445117207,0.0483502,93548.0,93541.0,0.22449842]
[1745445117911,0.0483502,93548.0,93541.0,0.21380793]
[1745445118109,0.0483502,93548.0,93541.0,0.22449842]
[1745445118320,0.0483502,93548.0,93542.0,0.22449589]
[1745445118982,0.0483502,93548.0,93542.0,0.21380551]
[1745445121524,0.0483502,93548.0,93542.0,0.22449589]
[1745445121832,0.0483502,93548.0,93542.0,0.21380551]
[1745445121970,0.0483502,93548.0,93542.0,0.22449589]
[1745445122943,0.0483502,93548.0,93541.0,0.22449842]
[1745445123521,0.0483502,93548.0,93542.0,0.01069038]
[1745445125043,0.0483502,93548.0,93544.0,0.01069015]
[1745445125204,0.0483502,93548.0,93543.0,0.21380541]
[1745445125756,0.0018502,93548.0,93543.0,0.22449568]
[1745445126212,0.0018502,93548.0,93545.0,0.2244896]
[1745445126640,0.0018502,93548.0,93546.0,0.21379677]
[1745445127404,0.0028502,93548.0,93546.0,0.21379677]
[1745445128766,0.0018502,93548.0,93546.0,0.21379677]
[1745445128939,0.0028502,93548.0,93546.0,0.21379677]
[1745445137245,0.0028502,93548.0,93547.0,0.34]
[1745445137906,0.0018502,93548.0,93547.0,0.34]
[1745445139574,0.0028502,93548.0,93547.0,0.34]
[1745445140572,0.0028502,93548.0,93547.0,0.36000983]
[1745445141919,0.0028502,93548.0,93547.0,0.34]
[1745445142943,0.0028502,93548.0,93547.0,0.36000688]
[1745445149802,0.0491502,93548.0,93547.0,0.02000688]
[1745445150894,0.0481502,93548.0,93547.0,0.02000688]
[1745445151873,0.0481502,93548.0,93543.0,0.34]
[1745445152866,0.0457,93547.0,93541.0,0.34]
[1745445153071,0.0457,93547.0,93543.0,0.34]
[1745445154075,0.0457,93547.0,93541.0,0.22449974]
[1745445154076,0.0457,93547.0,93542.0,0.01069038]
[1745445155094,0.0457,93547.0,93543.0,0.001]
[1745445155257,0.0457,93547.0,93543.0,0.34]
[1745445155671,0.0457,93547.0,93543.0,0.35069027]
[1745445156183,0.0457,93547.0,93543.0,0.35169027]
[1745445156328,0.0457,93547.0,93543.0,0.001]
[1745445156728,0.00948502,93546.0,93543.0,0.001]
[1745445157951,0.00948502,93546.0,93541.0,0.01069049]
[1745445159252,0.00948502,93546.0,93541.0,0.01169049]
[1745445160701,0.00948502,93546.0,93541.0,0.01269049]
[1745445160909,0.00948502,93546.0,93541.0,0.002]
[1745445161207,0.00948502,93546.0,93541.0,0.01269049]
[1745445163644,0.0457,93547.0,93541.0,0.01269049]
[1745445164383,0.0457,93547.0,93541.0,0.01169049]
[1745445164584,0.0457,93547.0,93541.0,0.001]
[1745445165042,0.0457,93547.0,93541.0,0.002]
[1745445175264,0.00299501,93546.0,93541.0,0.002]
[1745445175417,0.0457,93547.0,93541.0,0.002]
[1745445175626,0.0457,93547.0,93541.0,0.097277]
[1745445178801,0.10689014,93546.0,93541.0,0.097277]
[1745445179559,0.12716417,93546.0,93541.0,0.097277]
[1745445179766,0.12716417,93546.0,93541.0,0.095277]
[1745445180014,0.12716417,93546.0,93541.0,0.097277]
[1745445181275,0.12716417,93546.0,93541.0,0.096277]
[1745445181887,0.12716417,93546.0,93541.0,0.095277]
[1745445182087,0.02337037,93545.0,93541.0,0.095277]
[1745445182355,0.10689014,93544.0,93541.0,0.095277]
[1745445184515,0.10889014,93544.0,93541.0,0.095277]
[1745445184720,0.11089014,93544.0,93541.0,0.095277]
[1745445200006,0.0455,93543.0,93541.0,0.095277]
[1745445200147,0.14876335,93542.0,93541.0,0.095277]
[1745445200521,0.24366335,93542.0,93541.0,0.095277]
[1745445201080,0.24466335,93542.0,93541.0,0.095277]
[1745445201297,0.24466335,93542.0,93541.0,0.11528577]
[1745445201919,0.25466335,93542.0,93541.0,0.11628577]
[1745445202220,0.25166335,93542.0,93541.0,0.11628577]
[1745445202424,0.59666335,93542.0,93541.0,0.096277]
[1745445203267,0.58966335,93542.0,93541.0,0.095277]
[1745445203487,0.59566335,93542.0,93541.0,0.096277]
[1745445203812,0.59566335,93542.0,93541.0,0.095277]
[1745445204013,0.6042042,93542.0,93541.0,0.095277]
[1745445204242,0.6112042,93542.0,93541.0,0.096277]
[1745445204444,0.6062042,93542.0,93541.0,0.096277]
[1745445204860,0.6102042,93542.0,93541.0,0.096277]
[1745445205068,0.6062042,93542.0,93541.0,0.096277]
[1745445205399,0.6112042,93542.0,93541.0,0.097277]
[1745445210334,0.6042042,93542.0,93541.0,0.096277]
[1745445210571,0.6112042,93542.0,93541.0,0.096277]
[1745445210776,0.6062042,93542.0,93541.0,0.096277]
[1745445210955,0.6102042,93542.0,93541.0,0.097277]
[1745445211180,0.6102042,93542.0,93541.0,0.095277]
[1745445211181,0.6032042,93542.0,93541.0,0.095277]
[1745445211392,0.6032042,93542.0,93502.0,0.0855144]
[1745445211393,0.01069461,93505.0,93502.0,0.0855144]
[1745445211544,0.10689014,93504.0,93502.0,0.08556072]
[1745445211710,0.00299501,93503.0,93502.0,0.08556072]
[1745445212316,0.00299501,93503.0,93502.0,0.0955354]
[1745445213036,0.00399501,93503.0,93502.0,0.0955354]
[1745445213242,0.03754119,93503.0,93502.0,0.0955354]
[1745445213642,0.03754119,93503.0,93502.0,0.010021]
[1745445214752,0.00399501,93503.0,93502.0,0.010021]
[1745445215488,0.11088515,93503.0,93502.0,0.010021]
[1745445215749,0.15399014,93503.0,93502.0,0.010021]
[1745445215915,0.15698515,93503.0,93502.0,0.010021]
[1745445216328,0.15698515,93503.0,93502.0,4.632e-05]
[1745445216625,0.2400591,93503.0,93502.0,4.632e-05]
[1745445216825,0.01069541,93498.0,93482.0,0.34]
[1745445217029,0.10988515,93497.0,93482.0,0.34]
[1745445218099,0.11088515,93497.0,93482.0,0.345]
[1745445219472,0.11088515,93497.0,93482.0,0.005]
[1745445219669,0.04938712,93496.0,93482.0,0.008]
[1745445219990,0.10689014,93495.0,93482.0,0.008]
[1745445220189,0.10689014,93495.0,93482.0,0.005]
[1745445220390,0.10689014,93495.0,93482.0,0.22194343]
[1745445220864,0.10689014,93495.0,93482.0,0.21694343]
[1745445221149,0.10689014,93495.0,93485.0,0.0106969]
[1745445221348,0.10789014,93495.0,93488.0,0.21392972]
[1745445221549,0.001,93495.0,93494.0,0.0454]
[1745445221747,0.001,93495.0,93494.0,0.0922]
[1745445222085,0.001,93497.0,93494.0,0.0922]
[1745445222086,0.001,93497.0,93495.0,0.21391518]
[1745445222435,0.001,93497.0,93495.0,0.21491518]
[1745445222638,0.09024,93512.0,93501.0,0.21390138]
[1745445222843,0.213847,93525.0,93495.0,0.21491518]
[1745445222844,0.09028,93522.0,93512.0,0.21387444]
[1745445223008,0.10689014,93521.0,93511.0,0.01069392]
[1745445223408,0.10689014,93521.0,93512.0,0.01069381]
[1745445223716,0.10689014,93521.0,93509.0,0.0468]
[1745445223920,0.10689014,93521.0,93510.0,0.21388077]
[1745445224123,0.10702897,93521.0,93509.0,0.0468]
[1745445224347,0.10702897,93521.0,93511.0,0.001]
[1745445224544,0.10702897,93521.0,93509.0,0.05749415]
[1745445224709,0.10702897,93521.0,93512.0,0.21387629]
[1745445225220,0.10702897,93521.0,93511.0,0.002]
[1745445225571,0.10702897,93521.0,93511.0,0.0497]
[1745445225805,0.10702897,93521.0,93512.0,0.002]
[1745445226314,0.10702897,93521.0,93511.0,0.0487]
[1745445226540,0.10802897,93521.0,93511.0,0.0487]
[1745445227060,0.10902897,93521.0,93511.0,0.0487]
[1745445227257,0.10802897,93521.0,93511.0,0.0487]
[1745445227723,0.10902897,93521.0,93511.0,0.0487]
[1745445228265,0.10802897,93521.0,93511.0,0.0487]
[1745445228683,0.10802897,93521.0,93512.0,0.002]
[1745445229143,0.10802897,93521.0,93511.0,0.0487]
[1745445229513,0.10802897,93521.0,93511.0,0.0507]
[1745445229885,0.10802897,93521.0,93511.0,0.0487]
[1745445230087,0.10802897,93521.0,93512.0,0.002]
[1745445231046,0.10702897,93521.0,93512.0,0.002]
[1745445231248,0.10702897,93521.0,93512.0,0.003]
[1745445231411,0.10702897,93521.0,93512.0,0.001]
[1745445232627,0.10702897,93521.0,93512.0,0.003]
[1745445242501,0.02272591,93520.0,93512.0,0.003]
[1745445242708,0.10689014,93519.0,93512.0,0.003]
[1745445242883,0.00299501,93518.0,93512.0,0.003]
[1745445243111,0.10689014,93517.0,93512.0,0.003]
[1745445243313,0.00299501,93516.0,93512.0,0.003]
[1745445243564,0.10689014,93515.0,93505.0,0.21389098]
[1745445244056,0.10689014,93515.0,93512.0,0.001]
[1745445244452,0.10689014,93515.0,93506.0,0.21388822]
[1745445244701,0.10789014,93515.0,93506.0,0.21388822]
[1745445244929,0.10789014,93515.0,93505.0,0.21889098]
[1745445245145,0.10689014,93515.0,93505.0,0.21589098]
[1745445245360,0.10689014,93515.0,93505.0,0.21389098]
[1745445245578,0.10689014,93515.0,93512.0,0.001]
[1745445246029,0.00299501,93514.0,93512.0,0.001]
[1745445246205,0.10689014,93513.0,93512.0,0.001]
[1745445246864,0.11757915,93513.0,93512.0,0.001]
[1745445247179,0.16367915,93513.0,93506.0,0.21388783]
[1745445247411,0.00299501,93512.0,93506.0,0.21388783]
[1745445248473,0.00299501,93512.0,93506.0,0.21588783]
[1745445248975,0.00399501,93512.0,93506.0,0.005]
[1745445249478,0.02572243,93512.0,93506.0,0.005]
[1745445249680,0.02572243,93512.0,93506.0,0.003]
[1745445249899,0.02572243,93512.0,93506.0,0.005]
[1745445256979,0.00399501,93512.0,93506.0,0.005]
[1745445265825,0.00399501,93512.0,93502.0,0.21389916]
[1745445266260,0.00399501,93512.0,93503.0,0.21389503]
[1745445266473,0.00399501,93512.0,93505.0,0.21389152]
[1745445266673,0.00299501,93512.0,93505.0,0.21389152]
[1745445267153,0.001,93512.0,93503.0,0.21389503]
[1745445267373,0.001,93512.0,93506.0,0.2138892]
[1745445267947,0.001,93512.0,93505.0,0.002]
[1745445268150,0.00299501,93512.0,93505.0,0.002]
[1745445269081,0.00299501,93512.0,93504.0,0.21389406]
[1745445269287,0.00299501,93511.0,93503.0,0.21389491]
[1745445269504,0.00399501,93512.0,93506.0,0.001]
[1745445269667,0.00399501,93512.0,93505.0,0.001]
[1745445269993,0.00299501,93512.0,93505.0,0.001]
[1745445270199,0.10689014,93513.0,93503.0,0.21389491]
[1745445270343,0.001,93512.0,93504.0,0.001]
[1745445270538,0.001,93512.0,93506.0,0.001]
[1745445270797,0.10689014,93513.0,93503.0,0.21389491]
[1745445271207,0.001,93512.0,93505.0,0.002]
[1745445271584,0.001,93512.0,93505.0,0.21589052]
[1745445272264,0.001,93512.0,93505.0,0.001]
[1745445272488,0.001,93512.0,93506.0,0.001]
[1745445272995,0.00299501,93512.0,93505.0,0.21389218]
[1745445273212,0.10689014,93513.0,93505.0,0.21489218]
[1745445273558,0.10689014,93513.0,93503.0,0.002]
[1745445273559,0.00299501,93512.0,93503.0,0.002]
[1745445273889,0.00299501,93512.0,93501.0,0.21390003]
[1745445274112,0.00299501,93512.0,93505.0,0.002]
[1745445274113,0.00399501,93512.0,93505.0,0.002]
[1745445274437,0.00399501,93512.0,93506.0,0.001]
[1745445274642,0.00299501,93512.0,93506.0,0.001]
[1745445274980,0.00399501,93512.0,93506.0,0.001]
[1745445275283,0.01569852,93511.0,93506.0,0.001]
[1745445275900,0.01569852,93511.0,93504.0,0.21389294]
[1745445276124,0.00299501,93512.0,93504.0,0.21389294]
[1745445276444,0.00299501,93512.0,93506.0,0.001]
[1745445277231,0.00399501,93512.0,93504.0,0.002]
[1745445277436,0.00399501,93512.0,93504.0,0.004]
[1745445277616,0.00299501,93512.0,93503.0,0.2138953]
[1745445277809,0.10689014,93513.0,93503.0,0.2138953]
[1745445277995,0.10689014,93513.0,93506.0,0.002]
[1745445278195,0.00299501,93512.0,93506.0,0.002]
[1745445278750,0.10689014,93513.0,93506.0,0.002]
[1745445278895,0.00299501,93512.0,93506.0,0.002]
[1745445279091,0.00299501,93512.0,93506.0,0.001]
[1745445279294,0.00299501,93512.0,93505.0,0.2138922]
[1745445279498,0.00399501,93512.0,93505.0,0.2138922]
[1745445279886,0.00299501,93512.0,93505.0,0.2138922]
[1745445280271,0.00299501,93512.0,93506.0,0.001]
[1745445280442,0.01559852,93511.0,93506.0,0.001]
[1745445280867,0.00299501,93512.0,93506.0,0.002]
[1745445281087,0.00299501,93512.0,93506.0,0.001]
[1745445281263,0.00299501,93512.0,93505.0,0.2138922]
[1745445282259,0.00299501,93512.0,93505.0,0.2148922]
[1745445282620,0.00399501,93512.0,93505.0,0.2168922]
[1745445282948,0.001,93512.0,93505.0,0.2168922]
[1745445283667,0.00399501,93512.0,93505.0,0.2168922]
[1745445284691,0.001,93512.0,93505.0,0.21689192]
[1745445286064,0.00399501,93512.0,93505.0,0.21689192]
[1745445286571,0.001,93512.0,93505.0,0.21689192]